{"text_format":"3","workbook":"xlsx","n_sheets":5,"sheets":["Rēķins","Klienti","Rēķini — galvenā","Rēķina detalizētā informācija","Par šo rēķinu izsekotāju"],"not_rendered":{"defined_names":8},"read":"whole","date_system":"1900"}

{"sheet":"Rēķins","index":0,"n_rows":39,"n_cols":7,"rows_kept":39,"merged":[[1,1,1,2],[1,3,1,4],[1,5,1,6],[2,1,2,2],[2,3,2,4],[2,5,2,6],[3,3,3,4],[4,3,4,4],[5,3,5,4],[37,1,37,4],[38,1,38,4]]}
[null,"Uzņēmuma nosaukums"]
[null,"Adrese",null,"T: Tālruņa numurs",null,"E-pasts"]
[null,"Pilsēta, pasta indekss",null,"F: Faksa numurs",null,"Tīmekļa vietne"]
[null,"Rēķina saņēmējs:",{"$f":"IFERROR(VLOOKUP(VLOOKUP(rngRēķins,RēķiniGalvenais[],2,FALSE),KlientuSaraksts[],3,TRUE),\"\")","v":"Contoso, Ltd"},{"$f":"\"Tālrunis: \"&IFERROR(VLOOKUP(VLOOKUP(rngRēķins,RēķiniGalvenais[],2,FALSE),KlientuSaraksts[],9,FALSE),\"\")","v":"Tālrunis: 25550189"},null,"Rēķina nr.:","3-456-2"]
[null,"Adrese:",{"$f":"IFERROR(IF((VLOOKUP(VLOOKUP(rngRēķins,RēķiniGalvenais[],2,FALSE),KlientuSaraksts[],5,FALSE))=\"\",\"\",(VLOOKUP(VLOOKUP(rngRēķins,RēķiniGalvenais[],2,FALSE),KlientuSaraksts[],5,FALSE))),\"\")","v":"Riekstu aleja 567"},{"$f":"\"Fakss:     \"&IFERROR(VLOOKUP(VLOOKUP(rngRēķins,RēķiniGalvenais[],2,FALSE),KlientuSaraksts[],11,FALSE),\"\")","v":"Fakss:     25550123"},null,"Rēķina datums:",{"$f":"IFERROR(IF(VLOOKUP(rngRēķins,RēķiniGalvenais[],3,FALSE)=\"\",\"\",VLOOKUP(rngRēķins,RēķiniGalvenais[],3,FALSE)),\"\")","v":{"v":43688,"d":"4368800.00%"}}]
[null,null,{"$f":"IFERROR(VLOOKUP(VLOOKUP(rngRēķins,RēķiniGalvenais[],2,FALSE),KlientuSaraksts[],6,FALSE)&\", \"& VLOOKUP(VLOOKUP(G4,RēķiniGalvenais[],2,FALSE),KlientuSaraksts[],7,FALSE)&\" \"&VLOOKUP(VLOOKUP(G4,RēķiniGalvenais[],2,FALSE),KlientuSaraksts[],8,FALSE),\"\")","v":"Ainaži, Valmieras 098765"},{"$f":"\"E-pasts: \"&IFERROR(VLOOKUP(VLOOKUP(rngRēķins,RēķiniGalvenais[],2,FALSE),KlientuSaraksts[],10,FALSE),\"\")","v":"E-pasts: persona@example.com"}]
[null,{"$f":"\"Rēķins par: \"&IFERROR(VLOOKUP(rngRēķins,RēķiniGalvenais[],4),\"\")","v":"Rēķins par: 2. projekts"}]
[null,"Priekšmeta nr.","Apraksts","Daudz.","Vienības cena","Atlaide","Cena"]
[null,{"$f":"IFERROR(INDEX(Rēķina_informācija[],SMALL(IF(Rēķina_informācija[Rēķina nr.]=rngRēķins,ROW(Rēķina_informācija[])-ROW(Rēķina_informācija[#Headers])), ROW(1:1)), MATCH($B$8, Rēķina_informācija[#Headers], 0)),\"\")","v":"Z4567"},{"$f":"IFERROR(INDEX(Rēķina_informācija[],SMALL(IF(Rēķina_informācija[Rēķina nr.]=rngRēķins,ROW(Rēķina_informācija[])-ROW(Rēķina_informācija[#Headers])), ROW(1:1)), MATCH($C$8, Rēķina_informācija[#Headers], 0)),\"\")","v":"Faktūrrēķins 3-456-2 dati 1"},{"$f":"IFERROR(INDEX(Rēķina_informācija[],SMALL(IF(Rēķina_informācija[Rēķina nr.]=rngRēķins,ROW(Rēķina_informācija[])-ROW(Rēķina_informācija[#Headers])), ROW(1:1)), MATCH($D$8, Rēķina_informācija[#Headers], 0)),\"\")","v":39},{"$f":"IFERROR(INDEX(Rēķina_informācija[],SMALL(IF(Rēķina_informācija[Rēķina nr.]=rngRēķins,ROW(Rēķina_informācija[])-ROW(Rēķina_informācija[#Headers])), ROW(1:1)), MATCH($E$8, Rēķina_informācija[#Headers], 0)),\"\")","v":{"v":5,"d":"5.00 EUR"}},{"$f":"IFERROR(INDEX(Rēķina_informācija[],SMALL(IF(Rēķina_informācija[Rēķina nr.]=rngRēķins,ROW(Rēķina_informācija[])-ROW(Rēķina_informācija[#Headers])), ROW(1:1)), MATCH($F$8, Rēķina_informācija[#Headers], 0)),\"\")","v":0},{"$f":"IFERROR((D9*E9)-F9,\"\")","v":{"v":195,"d":"195.00 EUR"}}]
[null,{"$f":"IFERROR(INDEX(Rēķina_informācija[],SMALL(IF(Rēķina_informācija[Rēķina nr.]=rngRēķins,ROW(Rēķina_informācija[])-ROW(Rēķina_informācija[#Headers])), ROW(2:2)), MATCH($B$8, Rēķina_informācija[#Headers], 0)),\"\")","v":"Z4568"},{"$f":"IFERROR(INDEX(Rēķina_informācija[],SMALL(IF(Rēķina_informācija[Rēķina nr.]=rngRēķins,ROW(Rēķina_informācija[])-ROW(Rēķina_informācija[#Headers])), ROW(2:2)), MATCH($C$8, Rēķina_informācija[#Headers], 0)),\"\")","v":"Faktūrrēķins 3-456-2 dati 2"},{"$f":"IFERROR(INDEX(Rēķina_informācija[],SMALL(IF(Rēķina_informācija[Rēķina nr.]=rngRēķins,ROW(Rēķina_informācija[])-ROW(Rēķina_informācija[#Headers])), ROW(2:2)), MATCH($D$8, Rēķina_informācija[#Headers], 0)),\"\")","v":40},{"$f":"IFERROR(INDEX(Rēķina_informācija[],SMALL(IF(Rēķina_informācija[Rēķina nr.]=rngRēķins,ROW(Rēķina_informācija[])-ROW(Rēķina_informācija[#Headers])), ROW(2:2)), MATCH($E$8, Rēķina_informācija[#Headers], 0)),\"\")","v":{"v":4,"d":"4.00 EUR"}},{"$f":"IFERROR(INDEX(Rēķina_informācija[],SMALL(IF(Rēķina_informācija[Rēķina nr.]=rngRēķins,ROW(Rēķina_informācija[])-ROW(Rēķina_informācija[#Headers])), ROW(2:2)), MATCH($F$8, Rēķina_informācija[#Headers], 0)),\"\")","v":{"v":5,"d":"5.00 EUR"}},{"v":155,"d":"155.00 EUR"}]
[null,{"$f":"IFERROR(INDEX(Rēķina_informācija[],SMALL(IF(Rēķina_informācija[Rēķina nr.]=rngRēķins,ROW(Rēķina_informācija[])-ROW(Rēķina_informācija[#Headers])), ROW(3:3)), MATCH($B$8, Rēķina_informācija[#Headers], 0)),\"\")","v":"Z4569"},{"$f":"IFERROR(INDEX(Rēķina_informācija[],SMALL(IF(Rēķina_informācija[Rēķina nr.]=rngRēķins,ROW(Rēķina_informācija[])-ROW(Rēķina_informācija[#Headers])), ROW(3:3)), MATCH($C$8, Rēķina_informācija[#Headers], 0)),\"\")","v":"Faktūrrēķins 3-456-2 dati 3"},{"$f":"IFERROR(INDEX(Rēķina_informācija[],SMALL(IF(Rēķina_informācija[Rēķina nr.]=rngRēķins,ROW(Rēķina_informācija[])-ROW(Rēķina_informācija[#Headers])), ROW(3:3)), MATCH($D$8, Rēķina_informācija[#Headers], 0)),\"\")","v":30},{"$f":"IFERROR(INDEX(Rēķina_informācija[],SMALL(IF(Rēķina_informācija[Rēķina nr.]=rngRēķins,ROW(Rēķina_informācija[])-ROW(Rēķina_informācija[#Headers])), ROW(3:3)), MATCH($E$8, Rēķina_informācija[#Headers], 0)),\"\")","v":{"v":6,"d":"6.00 EUR"}},{"$f":"IFERROR(INDEX(Rēķina_informācija[],SMALL(IF(Rēķina_informācija[Rēķina nr.]=rngRēķins,ROW(Rēķina_informācija[])-ROW(Rēķina_informācija[#Headers])), ROW(3:3)), MATCH($F$8, Rēķina_informācija[#Headers], 0)),\"\")","v":{"v":7,"d":"7.00 EUR"}},{"v":173,"d":"173.00 EUR"}]
[null,{"$f":"IFERROR(INDEX(Rēķina_informācija[],SMALL(IF(Rēķina_informācija[Rēķina nr.]=rngRēķins,ROW(Rēķina_informācija[])-ROW(Rēķina_informācija[#Headers])), ROW(4:4)), MATCH($B$8, Rēķina_informācija[#Headers], 0)),\"\")","v":"Z4570"},{"$f":"IFERROR(INDEX(Rēķina_informācija[],SMALL(IF(Rēķina_informācija[Rēķina nr.]=rngRēķins,ROW(Rēķina_informācija[])-ROW(Rēķina_informācija[#Headers])), ROW(4:4)), MATCH($C$8, Rēķina_informācija[#Headers], 0)),\"\")","v":"Faktūrrēķins 3-456-2 dati 4"},{"$f":"IFERROR(INDEX(Rēķina_informācija[],SMALL(IF(Rēķina_informācija[Rēķina nr.]=rngRēķins,ROW(Rēķina_informācija[])-ROW(Rēķina_informācija[#Headers])), ROW(4:4)), MATCH($D$8, Rēķina_informācija[#Headers], 0)),\"\")","v":40},{"$f":"IFERROR(INDEX(Rēķina_informācija[],SMALL(IF(Rēķina_informācija[Rēķina nr.]=rngRēķins,ROW(Rēķina_informācija[])-ROW(Rēķina_informācija[#Headers])), ROW(4:4)), MATCH($E$8, Rēķina_informācija[#Headers], 0)),\"\")","v":{"v":7,"d":"7.00 EUR"}},{"$f":"IFERROR(INDEX(Rēķina_informācija[],SMALL(IF(Rēķina_informācija[Rēķina nr.]=rngRēķins,ROW(Rēķina_informācija[])-ROW(Rēķina_informācija[#Headers])), ROW(4:4)), MATCH($F$8, Rēķina_informācija[#Headers], 0)),\"\")","v":0},{"v":280,"d":"280.00 EUR"}]
[null,{"$f":"IFERROR(INDEX(Rēķina_informācija[],SMALL(IF(Rēķina_informācija[Rēķina nr.]=rngRēķins,ROW(Rēķina_informācija[])-ROW(Rēķina_informācija[#Headers])), ROW(5:5)), MATCH($B$8, Rēķina_informācija[#Headers], 0)),\"\")","v":"Z4571"},{"$f":"IFERROR(INDEX(Rēķina_informācija[],SMALL(IF(Rēķina_informācija[Rēķina nr.]=rngRēķins,ROW(Rēķina_informācija[])-ROW(Rēķina_informācija[#Headers])), ROW(5:5)), MATCH($C$8, Rēķina_informācija[#Headers], 0)),\"\")","v":"Faktūrrēķins 3-456-2 dati 5"},{"$f":"IFERROR(INDEX(Rēķina_informācija[],SMALL(IF(Rēķina_informācija[Rēķina nr.]=rngRēķins,ROW(Rēķina_informācija[])-ROW(Rēķina_informācija[#Headers])), ROW(5:5)), MATCH($D$8, Rēķina_informācija[#Headers], 0)),\"\")","v":10},{"$f":"IFERROR(INDEX(Rēķina_informācija[],SMALL(IF(Rēķina_informācija[Rēķina nr.]=rngRēķins,ROW(Rēķina_informācija[])-ROW(Rēķina_informācija[#Headers])), ROW(5:5)), MATCH($E$8, Rēķina_informācija[#Headers], 0)),\"\")","v":{"v":4,"d":"4.00 EUR"}},{"$f":"IFERROR(INDEX(Rēķina_informācija[],SMALL(IF(Rēķina_informācija[Rēķina nr.]=rngRēķins,ROW(Rēķina_informācija[])-ROW(Rēķina_informācija[#Headers])), ROW(5:5)), MATCH($F$8, Rēķina_informācija[#Headers], 0)),\"\")","v":0},{"v":40,"d":"40.00 EUR"}]
[null,{"$f":"IFERROR(INDEX(Rēķina_informācija[],SMALL(IF(Rēķina_informācija[Rēķina nr.]=rngRēķins,ROW(Rēķina_informācija[])-ROW(Rēķina_informācija[#Headers])), ROW(6:6)), MATCH($B$8, Rēķina_informācija[#Headers], 0)),\"\")","v":"Z4572"},{"$f":"IFERROR(INDEX(Rēķina_informācija[],SMALL(IF(Rēķina_informācija[Rēķina nr.]=rngRēķins,ROW(Rēķina_informācija[])-ROW(Rēķina_informācija[#Headers])), ROW(6:6)), MATCH($C$8, Rēķina_informācija[#Headers], 0)),\"\")","v":"Faktūrrēķins 3-456-2 dati 6"},{"$f":"IFERROR(INDEX(Rēķina_informācija[],SMALL(IF(Rēķina_informācija[Rēķina nr.]=rngRēķins,ROW(Rēķina_informācija[])-ROW(Rēķina_informācija[#Headers])), ROW(6:6)), MATCH($D$8, Rēķina_informācija[#Headers], 0)),\"\")","v":5},{"$f":"IFERROR(INDEX(Rēķina_informācija[],SMALL(IF(Rēķina_informācija[Rēķina nr.]=rngRēķins,ROW(Rēķina_informācija[])-ROW(Rēķina_informācija[#Headers])), ROW(6:6)), MATCH($E$8, Rēķina_informācija[#Headers], 0)),\"\")","v":{"v":8,"d":"8.00 EUR"}},{"$f":"IFERROR(INDEX(Rēķina_informācija[],SMALL(IF(Rēķina_informācija[Rēķina nr.]=rngRēķins,ROW(Rēķina_informācija[])-ROW(Rēķina_informācija[#Headers])), ROW(6:6)), MATCH($F$8, Rēķina_informācija[#Headers], 0)),\"\")","v":0},{"v":40,"d":"40.00 EUR"}]
[null,{"$f":"IFERROR(INDEX(Rēķina_informācija[],SMALL(IF(Rēķina_informācija[Rēķina nr.]=rngRēķins,ROW(Rēķina_informācija[])-ROW(Rēķina_informācija[#Headers])), ROW(7:7)), MATCH($B$8, Rēķina_informācija[#Headers], 0)),\"\")","v":"Z4573"},{"$f":"IFERROR(INDEX(Rēķina_informācija[],SMALL(IF(Rēķina_informācija[Rēķina nr.]=rngRēķins,ROW(Rēķina_informācija[])-ROW(Rēķina_informācija[#Headers])), ROW(7:7)), MATCH($C$8, Rēķina_informācija[#Headers], 0)),\"\")","v":"Faktūrrēķins 3-456-2 dati 7"},{"$f":"IFERROR(INDEX(Rēķina_informācija[],SMALL(IF(Rēķina_informācija[Rēķina nr.]=rngRēķins,ROW(Rēķina_informācija[])-ROW(Rēķina_informācija[#Headers])), ROW(7:7)), MATCH($D$8, Rēķina_informācija[#Headers], 0)),\"\")","v":70},{"$f":"IFERROR(INDEX(Rēķina_informācija[],SMALL(IF(Rēķina_informācija[Rēķina nr.]=rngRēķins,ROW(Rēķina_informācija[])-ROW(Rēķina_informācija[#Headers])), ROW(7:7)), MATCH($E$8, Rēķina_informācija[#Headers], 0)),\"\")","v":{"v":6,"d":"6.00 EUR"}},{"$f":"IFERROR(INDEX(Rēķina_informācija[],SMALL(IF(Rēķina_informācija[Rēķina nr.]=rngRēķins,ROW(Rēķina_informācija[])-ROW(Rēķina_informācija[#Headers])), ROW(7:7)), MATCH($F$8, Rēķina_informācija[#Headers], 0)),\"\")","v":0},{"v":420,"d":"420.00 EUR"}]
[null,{"$f":"IFERROR(INDEX(Rēķina_informācija[],SMALL(IF(Rēķina_informācija[Rēķina nr.]=rngRēķins,ROW(Rēķina_informācija[])-ROW(Rēķina_informācija[#Headers])), ROW(8:8)), MATCH($B$8, Rēķina_informācija[#Headers], 0)),\"\")","v":"Z4574"},{"$f":"IFERROR(INDEX(Rēķina_informācija[],SMALL(IF(Rēķina_informācija[Rēķina nr.]=rngRēķins,ROW(Rēķina_informācija[])-ROW(Rēķina_informācija[#Headers])), ROW(8:8)), MATCH($C$8, Rēķina_informācija[#Headers], 0)),\"\")","v":"Faktūrrēķins 3-456-2 dati 8"},{"$f":"IFERROR(INDEX(Rēķina_informācija[],SMALL(IF(Rēķina_informācija[Rēķina nr.]=rngRēķins,ROW(Rēķina_informācija[])-ROW(Rēķina_informācija[#Headers])), ROW(8:8)), MATCH($D$8, Rēķina_informācija[#Headers], 0)),\"\")","v":25},{"$f":"IFERROR(INDEX(Rēķina_informācija[],SMALL(IF(Rēķina_informācija[Rēķina nr.]=rngRēķins,ROW(Rēķina_informācija[])-ROW(Rēķina_informācija[#Headers])), ROW(8:8)), MATCH($E$8, Rēķina_informācija[#Headers], 0)),\"\")","v":{"v":4,"d":"4.00 EUR"}},{"$f":"IFERROR(INDEX(Rēķina_informācija[],SMALL(IF(Rēķina_informācija[Rēķina nr.]=rngRēķins,ROW(Rēķina_informācija[])-ROW(Rēķina_informācija[#Headers])), ROW(8:8)), MATCH($F$8, Rēķina_informācija[#Headers], 0)),\"\")","v":0},{"v":100,"d":"100.00 EUR"}]
[null,{"$f":"IFERROR(INDEX(Rēķina_informācija[],SMALL(IF(Rēķina_informācija[Rēķina nr.]=rngRēķins,ROW(Rēķina_informācija[])-ROW(Rēķina_informācija[#Headers])), ROW(9:9)), MATCH($B$8, Rēķina_informācija[#Headers], 0)),\"\")","v":"Z4575"},{"$f":"IFERROR(INDEX(Rēķina_informācija[],SMALL(IF(Rēķina_informācija[Rēķina nr.]=rngRēķins,ROW(Rēķina_informācija[])-ROW(Rēķina_informācija[#Headers])), ROW(9:9)), MATCH($C$8, Rēķina_informācija[#Headers], 0)),\"\")","v":"Faktūrrēķins 3-456-2 dati 9"},{"$f":"IFERROR(INDEX(Rēķina_informācija[],SMALL(IF(Rēķina_informācija[Rēķina nr.]=rngRēķins,ROW(Rēķina_informācija[])-ROW(Rēķina_informācija[#Headers])), ROW(9:9)), MATCH($D$8, Rēķina_informācija[#Headers], 0)),\"\")","v":5},{"$f":"IFERROR(INDEX(Rēķina_informācija[],SMALL(IF(Rēķina_informācija[Rēķina nr.]=rngRēķins,ROW(Rēķina_informācija[])-ROW(Rēķina_informācija[#Headers])), ROW(9:9)), MATCH($E$8, Rēķina_informācija[#Headers], 0)),\"\")","v":{"v":7,"d":"7.00 EUR"}},{"$f":"IFERROR(INDEX(Rēķina_informācija[],SMALL(IF(Rēķina_informācija[Rēķina nr.]=rngRēķins,ROW(Rēķina_informācija[])-ROW(Rēķina_informācija[#Headers])), ROW(9:9)), MATCH($F$8, Rēķina_informācija[#Headers], 0)),\"\")","v":{"v":3,"d":"3.00 EUR"}},{"v":32,"d":"32.00 EUR"}]
[null,{"$f":"IFERROR(INDEX(Rēķina_informācija[],SMALL(IF(Rēķina_informācija[Rēķina nr.]=rngRēķins,ROW(Rēķina_informācija[])-ROW(Rēķina_informācija[#Headers])), ROW(10:10)), MATCH($B$8, Rēķina_informācija[#Headers], 0)),\"\")","v":"Z4576"},{"$f":"IFERROR(INDEX(Rēķina_informācija[],SMALL(IF(Rēķina_informācija[Rēķina nr.]=rngRēķins,ROW(Rēķina_informācija[])-ROW(Rēķina_informācija[#Headers])), ROW(10:10)), MATCH($C$8, Rēķina_informācija[#Headers], 0)),\"\")","v":"Faktūrrēķins 3-456-2 dati 10"},{"$f":"IFERROR(INDEX(Rēķina_informācija[],SMALL(IF(Rēķina_informācija[Rēķina nr.]=rngRēķins,ROW(Rēķina_informācija[])-ROW(Rēķina_informācija[#Headers])), ROW(10:10)), MATCH($D$8, Rēķina_informācija[#Headers], 0)),\"\")","v":80},{"$f":"IFERROR(INDEX(Rēķina_informācija[],SMALL(IF(Rēķina_informācija[Rēķina nr.]=rngRēķins,ROW(Rēķina_informācija[])-ROW(Rēķina_informācija[#Headers])), ROW(10:10)), MATCH($E$8, Rēķina_informācija[#Headers], 0)),\"\")","v":{"v":1,"d":"1.00 EUR"}},{"$f":"IFERROR(INDEX(Rēķina_informācija[],SMALL(IF(Rēķina_informācija[Rēķina nr.]=rngRēķins,ROW(Rēķina_informācija[])-ROW(Rēķina_informācija[#Headers])), ROW(10:10)), MATCH($F$8, Rēķina_informācija[#Headers], 0)),\"\")","v":0},{"v":80,"d":"80.00 EUR"}]
[null,{"$f":"IFERROR(INDEX(Rēķina_informācija[],SMALL(IF(Rēķina_informācija[Rēķina nr.]=rngRēķins,ROW(Rēķina_informācija[])-ROW(Rēķina_informācija[#Headers])), ROW(11:11)), MATCH($B$8, Rēķina_informācija[#Headers], 0)),\"\")","v":"Z4577"},{"$f":"IFERROR(INDEX(Rēķina_informācija[],SMALL(IF(Rēķina_informācija[Rēķina nr.]=rngRēķins,ROW(Rēķina_informācija[])-ROW(Rēķina_informācija[#Headers])), ROW(11:11)), MATCH($C$8, Rēķina_informācija[#Headers], 0)),\"\")","v":"Faktūrrēķins 3-456-2 dati 11"},{"$f":"IFERROR(INDEX(Rēķina_informācija[],SMALL(IF(Rēķina_informācija[Rēķina nr.]=rngRēķins,ROW(Rēķina_informācija[])-ROW(Rēķina_informācija[#Headers])), ROW(11:11)), MATCH($D$8, Rēķina_informācija[#Headers], 0)),\"\")","v":65},{"$f":"IFERROR(INDEX(Rēķina_informācija[],SMALL(IF(Rēķina_informācija[Rēķina nr.]=rngRēķins,ROW(Rēķina_informācija[])-ROW(Rēķina_informācija[#Headers])), ROW(11:11)), MATCH($E$8, Rēķina_informācija[#Headers], 0)),\"\")","v":{"v":7,"d":"7.00 EUR"}},{"$f":"IFERROR(INDEX(Rēķina_informācija[],SMALL(IF(Rēķina_informācija[Rēķina nr.]=rngRēķins,ROW(Rēķina_informācija[])-ROW(Rēķina_informācija[#Headers])), ROW(11:11)), MATCH($F$8, Rēķina_informācija[#Headers], 0)),\"\")","v":0},{"v":455,"d":"455.00 EUR"}]
[null,{"$f":"IFERROR(INDEX(Rēķina_informācija[],SMALL(IF(Rēķina_informācija[Rēķina nr.]=rngRēķins,ROW(Rēķina_informācija[])-ROW(Rēķina_informācija[#Headers])), ROW(12:12)), MATCH($B$8, Rēķina_informācija[#Headers], 0)),\"\")","v":"Z4578"},{"$f":"IFERROR(INDEX(Rēķina_informācija[],SMALL(IF(Rēķina_informācija[Rēķina nr.]=rngRēķins,ROW(Rēķina_informācija[])-ROW(Rēķina_informācija[#Headers])), ROW(12:12)), MATCH($C$8, Rēķina_informācija[#Headers], 0)),\"\")","v":"Faktūrrēķins 3-456-2 dati 12"},{"$f":"IFERROR(INDEX(Rēķina_informācija[],SMALL(IF(Rēķina_informācija[Rēķina nr.]=rngRēķins,ROW(Rēķina_informācija[])-ROW(Rēķina_informācija[#Headers])), ROW(12:12)), MATCH($D$8, Rēķina_informācija[#Headers], 0)),\"\")","v":44},{"$f":"IFERROR(INDEX(Rēķina_informācija[],SMALL(IF(Rēķina_informācija[Rēķina nr.]=rngRēķins,ROW(Rēķina_informācija[])-ROW(Rēķina_informācija[#Headers])), ROW(12:12)), MATCH($E$8, Rēķina_informācija[#Headers], 0)),\"\")","v":{"v":1,"d":"1.00 EUR"}},{"$f":"IFERROR(INDEX(Rēķina_informācija[],SMALL(IF(Rēķina_informācija[Rēķina nr.]=rngRēķins,ROW(Rēķina_informācija[])-ROW(Rēķina_informācija[#Headers])), ROW(12:12)), MATCH($F$8, Rēķina_informācija[#Headers], 0)),\"\")","v":0},{"v":44,"d":"44.00 EUR"}]
[null,{"$f":"IFERROR(INDEX(Rēķina_informācija[],SMALL(IF(Rēķina_informācija[Rēķina nr.]=rngRēķins,ROW(Rēķina_informācija[])-ROW(Rēķina_informācija[#Headers])), ROW(13:13)), MATCH($B$8, Rēķina_informācija[#Headers], 0)),\"\")","v":""},{"$f":"IFERROR(INDEX(Rēķina_informācija[],SMALL(IF(Rēķina_informācija[Rēķina nr.]=rngRēķins,ROW(Rēķina_informācija[])-ROW(Rēķina_informācija[#Headers])), ROW(13:13)), MATCH($C$8, Rēķina_informācija[#Headers], 0)),\"\")","v":""},{"$f":"IFERROR(INDEX(Rēķina_informācija[],SMALL(IF(Rēķina_informācija[Rēķina nr.]=rngRēķins,ROW(Rēķina_informācija[])-ROW(Rēķina_informācija[#Headers])), ROW(13:13)), MATCH($D$8, Rēķina_informācija[#Headers], 0)),\"\")","v":""},{"$f":"IFERROR(INDEX(Rēķina_informācija[],SMALL(IF(Rēķina_informācija[Rēķina nr.]=rngRēķins,ROW(Rēķina_informācija[])-ROW(Rēķina_informācija[#Headers])), ROW(13:13)), MATCH($E$8, Rēķina_informācija[#Headers], 0)),\"\")","v":""},{"$f":"IFERROR(INDEX(Rēķina_informācija[],SMALL(IF(Rēķina_informācija[Rēķina nr.]=rngRēķins,ROW(Rēķina_informācija[])-ROW(Rēķina_informācija[#Headers])), ROW(13:13)), MATCH($F$8, Rēķina_informācija[#Headers], 0)),\"\")","v":""},""]
[null,{"$f":"IFERROR(INDEX(Rēķina_informācija[],SMALL(IF(Rēķina_informācija[Rēķina nr.]=rngRēķins,ROW(Rēķina_informācija[])-ROW(Rēķina_informācija[#Headers])), ROW(14:14)), MATCH($B$8, Rēķina_informācija[#Headers], 0)),\"\")","v":""},{"$f":"IFERROR(INDEX(Rēķina_informācija[],SMALL(IF(Rēķina_informācija[Rēķina nr.]=rngRēķins,ROW(Rēķina_informācija[])-ROW(Rēķina_informācija[#Headers])), ROW(14:14)), MATCH($C$8, Rēķina_informācija[#Headers], 0)),\"\")","v":""},{"$f":"IFERROR(INDEX(Rēķina_informācija[],SMALL(IF(Rēķina_informācija[Rēķina nr.]=rngRēķins,ROW(Rēķina_informācija[])-ROW(Rēķina_informācija[#Headers])), ROW(14:14)), MATCH($D$8, Rēķina_informācija[#Headers], 0)),\"\")","v":""},{"$f":"IFERROR(INDEX(Rēķina_informācija[],SMALL(IF(Rēķina_informācija[Rēķina nr.]=rngRēķins,ROW(Rēķina_informācija[])-ROW(Rēķina_informācija[#Headers])), ROW(14:14)), MATCH($E$8, Rēķina_informācija[#Headers], 0)),\"\")","v":""},{"$f":"IFERROR(INDEX(Rēķina_informācija[],SMALL(IF(Rēķina_informācija[Rēķina nr.]=rngRēķins,ROW(Rēķina_informācija[])-ROW(Rēķina_informācija[#Headers])), ROW(14:14)), MATCH($F$8, Rēķina_informācija[#Headers], 0)),\"\")","v":""},""]
[null,{"$f":"IFERROR(INDEX(Rēķina_informācija[],SMALL(IF(Rēķina_informācija[Rēķina nr.]=rngRēķins,ROW(Rēķina_informācija[])-ROW(Rēķina_informācija[#Headers])), ROW(15:15)), MATCH($B$8, Rēķina_informācija[#Headers], 0)),\"\")","v":""},{"$f":"IFERROR(INDEX(Rēķina_informācija[],SMALL(IF(Rēķina_informācija[Rēķina nr.]=rngRēķins,ROW(Rēķina_informācija[])-ROW(Rēķina_informācija[#Headers])), ROW(15:15)), MATCH($C$8, Rēķina_informācija[#Headers], 0)),\"\")","v":""},{"$f":"IFERROR(INDEX(Rēķina_informācija[],SMALL(IF(Rēķina_informācija[Rēķina nr.]=rngRēķins,ROW(Rēķina_informācija[])-ROW(Rēķina_informācija[#Headers])), ROW(15:15)), MATCH($D$8, Rēķina_informācija[#Headers], 0)),\"\")","v":""},{"$f":"IFERROR(INDEX(Rēķina_informācija[],SMALL(IF(Rēķina_informācija[Rēķina nr.]=rngRēķins,ROW(Rēķina_informācija[])-ROW(Rēķina_informācija[#Headers])), ROW(15:15)), MATCH($E$8, Rēķina_informācija[#Headers], 0)),\"\")","v":""},{"$f":"IFERROR(INDEX(Rēķina_informācija[],SMALL(IF(Rēķina_informācija[Rēķina nr.]=rngRēķins,ROW(Rēķina_informācija[])-ROW(Rēķina_informācija[#Headers])), ROW(15:15)), MATCH($F$8, Rēķina_informācija[#Headers], 0)),\"\")","v":""},""]
[null,{"$f":"IFERROR(INDEX(Rēķina_informācija[],SMALL(IF(Rēķina_informācija[Rēķina nr.]=rngRēķins,ROW(Rēķina_informācija[])-ROW(Rēķina_informācija[#Headers])), ROW(16:16)), MATCH($B$8, Rēķina_informācija[#Headers], 0)),\"\")","v":""},{"$f":"IFERROR(INDEX(Rēķina_informācija[],SMALL(IF(Rēķina_informācija[Rēķina nr.]=rngRēķins,ROW(Rēķina_informācija[])-ROW(Rēķina_informācija[#Headers])), ROW(16:16)), MATCH($C$8, Rēķina_informācija[#Headers], 0)),\"\")","v":""},{"$f":"IFERROR(INDEX(Rēķina_informācija[],SMALL(IF(Rēķina_informācija[Rēķina nr.]=rngRēķins,ROW(Rēķina_informācija[])-ROW(Rēķina_informācija[#Headers])), ROW(16:16)), MATCH($D$8, Rēķina_informācija[#Headers], 0)),\"\")","v":""},{"$f":"IFERROR(INDEX(Rēķina_informācija[],SMALL(IF(Rēķina_informācija[Rēķina nr.]=rngRēķins,ROW(Rēķina_informācija[])-ROW(Rēķina_informācija[#Headers])), ROW(16:16)), MATCH($E$8, Rēķina_informācija[#Headers], 0)),\"\")","v":""},{"$f":"IFERROR(INDEX(Rēķina_informācija[],SMALL(IF(Rēķina_informācija[Rēķina nr.]=rngRēķins,ROW(Rēķina_informācija[])-ROW(Rēķina_informācija[#Headers])), ROW(16:16)), MATCH($F$8, Rēķina_informācija[#Headers], 0)),\"\")","v":""},""]
[null,{"$f":"IFERROR(INDEX(Rēķina_informācija[],SMALL(IF(Rēķina_informācija[Rēķina nr.]=rngRēķins,ROW(Rēķina_informācija[])-ROW(Rēķina_informācija[#Headers])), ROW(17:17)), MATCH($B$8, Rēķina_informācija[#Headers], 0)),\"\")","v":""},{"$f":"IFERROR(INDEX(Rēķina_informācija[],SMALL(IF(Rēķina_informācija[Rēķina nr.]=rngRēķins,ROW(Rēķina_informācija[])-ROW(Rēķina_informācija[#Headers])), ROW(17:17)), MATCH($C$8, Rēķina_informācija[#Headers], 0)),\"\")","v":""},{"$f":"IFERROR(INDEX(Rēķina_informācija[],SMALL(IF(Rēķina_informācija[Rēķina nr.]=rngRēķins,ROW(Rēķina_informācija[])-ROW(Rēķina_informācija[#Headers])), ROW(17:17)), MATCH($D$8, Rēķina_informācija[#Headers], 0)),\"\")","v":""},{"$f":"IFERROR(INDEX(Rēķina_informācija[],SMALL(IF(Rēķina_informācija[Rēķina nr.]=rngRēķins,ROW(Rēķina_informācija[])-ROW(Rēķina_informācija[#Headers])), ROW(17:17)), MATCH($E$8, Rēķina_informācija[#Headers], 0)),\"\")","v":""},{"$f":"IFERROR(INDEX(Rēķina_informācija[],SMALL(IF(Rēķina_informācija[Rēķina nr.]=rngRēķins,ROW(Rēķina_informācija[])-ROW(Rēķina_informācija[#Headers])), ROW(17:17)), MATCH($F$8, Rēķina_informācija[#Headers], 0)),\"\")","v":""},""]
[null,{"$f":"IFERROR(INDEX(Rēķina_informācija[],SMALL(IF(Rēķina_informācija[Rēķina nr.]=rngRēķins,ROW(Rēķina_informācija[])-ROW(Rēķina_informācija[#Headers])), ROW(18:18)), MATCH($B$8, Rēķina_informācija[#Headers], 0)),\"\")","v":""},{"$f":"IFERROR(INDEX(Rēķina_informācija[],SMALL(IF(Rēķina_informācija[Rēķina nr.]=rngRēķins,ROW(Rēķina_informācija[])-ROW(Rēķina_informācija[#Headers])), ROW(18:18)), MATCH($C$8, Rēķina_informācija[#Headers], 0)),\"\")","v":""},{"$f":"IFERROR(INDEX(Rēķina_informācija[],SMALL(IF(Rēķina_informācija[Rēķina nr.]=rngRēķins,ROW(Rēķina_informācija[])-ROW(Rēķina_informācija[#Headers])), ROW(18:18)), MATCH($D$8, Rēķina_informācija[#Headers], 0)),\"\")","v":""},{"$f":"IFERROR(INDEX(Rēķina_informācija[],SMALL(IF(Rēķina_informācija[Rēķina nr.]=rngRēķins,ROW(Rēķina_informācija[])-ROW(Rēķina_informācija[#Headers])), ROW(18:18)), MATCH($E$8, Rēķina_informācija[#Headers], 0)),\"\")","v":""},{"$f":"IFERROR(INDEX(Rēķina_informācija[],SMALL(IF(Rēķina_informācija[Rēķina nr.]=rngRēķins,ROW(Rēķina_informācija[])-ROW(Rēķina_informācija[#Headers])), ROW(18:18)), MATCH($F$8, Rēķina_informācija[#Headers], 0)),\"\")","v":""},""]
[null,{"$f":"IFERROR(INDEX(Rēķina_informācija[],SMALL(IF(Rēķina_informācija[Rēķina nr.]=rngRēķins,ROW(Rēķina_informācija[])-ROW(Rēķina_informācija[#Headers])), ROW(19:19)), MATCH($B$8, Rēķina_informācija[#Headers], 0)),\"\")","v":""},{"$f":"IFERROR(INDEX(Rēķina_informācija[],SMALL(IF(Rēķina_informācija[Rēķina nr.]=rngRēķins,ROW(Rēķina_informācija[])-ROW(Rēķina_informācija[#Headers])), ROW(19:19)), MATCH($C$8, Rēķina_informācija[#Headers], 0)),\"\")","v":""},{"$f":"IFERROR(INDEX(Rēķina_informācija[],SMALL(IF(Rēķina_informācija[Rēķina nr.]=rngRēķins,ROW(Rēķina_informācija[])-ROW(Rēķina_informācija[#Headers])), ROW(19:19)), MATCH($D$8, Rēķina_informācija[#Headers], 0)),\"\")","v":""},{"$f":"IFERROR(INDEX(Rēķina_informācija[],SMALL(IF(Rēķina_informācija[Rēķina nr.]=rngRēķins,ROW(Rēķina_informācija[])-ROW(Rēķina_informācija[#Headers])), ROW(19:19)), MATCH($E$8, Rēķina_informācija[#Headers], 0)),\"\")","v":""},{"$f":"IFERROR(INDEX(Rēķina_informācija[],SMALL(IF(Rēķina_informācija[Rēķina nr.]=rngRēķins,ROW(Rēķina_informācija[])-ROW(Rēķina_informācija[#Headers])), ROW(19:19)), MATCH($F$8, Rēķina_informācija[#Headers], 0)),\"\")","v":""},""]
[null,{"$f":"IFERROR(INDEX(Rēķina_informācija[],SMALL(IF(Rēķina_informācija[Rēķina nr.]=rngRēķins,ROW(Rēķina_informācija[])-ROW(Rēķina_informācija[#Headers])), ROW(20:20)), MATCH($B$8, Rēķina_informācija[#Headers], 0)),\"\")","v":""},{"$f":"IFERROR(INDEX(Rēķina_informācija[],SMALL(IF(Rēķina_informācija[Rēķina nr.]=rngRēķins,ROW(Rēķina_informācija[])-ROW(Rēķina_informācija[#Headers])), ROW(20:20)), MATCH($C$8, Rēķina_informācija[#Headers], 0)),\"\")","v":""},{"$f":"IFERROR(INDEX(Rēķina_informācija[],SMALL(IF(Rēķina_informācija[Rēķina nr.]=rngRēķins,ROW(Rēķina_informācija[])-ROW(Rēķina_informācija[#Headers])), ROW(20:20)), MATCH($D$8, Rēķina_informācija[#Headers], 0)),\"\")","v":""},{"$f":"IFERROR(INDEX(Rēķina_informācija[],SMALL(IF(Rēķina_informācija[Rēķina nr.]=rngRēķins,ROW(Rēķina_informācija[])-ROW(Rēķina_informācija[#Headers])), ROW(20:20)), MATCH($E$8, Rēķina_informācija[#Headers], 0)),\"\")","v":""},{"$f":"IFERROR(INDEX(Rēķina_informācija[],SMALL(IF(Rēķina_informācija[Rēķina nr.]=rngRēķins,ROW(Rēķina_informācija[])-ROW(Rēķina_informācija[#Headers])), ROW(20:20)), MATCH($F$8, Rēķina_informācija[#Headers], 0)),\"\")","v":""},""]
[null,{"$f":"IFERROR(INDEX(Rēķina_informācija[],SMALL(IF(Rēķina_informācija[Rēķina nr.]=rngRēķins,ROW(Rēķina_informācija[])-ROW(Rēķina_informācija[#Headers])), ROW(21:21)), MATCH($B$8, Rēķina_informācija[#Headers], 0)),\"\")","v":""},{"$f":"IFERROR(INDEX(Rēķina_informācija[],SMALL(IF(Rēķina_informācija[Rēķina nr.]=rngRēķins,ROW(Rēķina_informācija[])-ROW(Rēķina_informācija[#Headers])), ROW(21:21)), MATCH($C$8, Rēķina_informācija[#Headers], 0)),\"\")","v":""},{"$f":"IFERROR(INDEX(Rēķina_informācija[],SMALL(IF(Rēķina_informācija[Rēķina nr.]=rngRēķins,ROW(Rēķina_informācija[])-ROW(Rēķina_informācija[#Headers])), ROW(21:21)), MATCH($D$8, Rēķina_informācija[#Headers], 0)),\"\")","v":""},{"$f":"IFERROR(INDEX(Rēķina_informācija[],SMALL(IF(Rēķina_informācija[Rēķina nr.]=rngRēķins,ROW(Rēķina_informācija[])-ROW(Rēķina_informācija[#Headers])), ROW(21:21)), MATCH($E$8, Rēķina_informācija[#Headers], 0)),\"\")","v":""},{"$f":"IFERROR(INDEX(Rēķina_informācija[],SMALL(IF(Rēķina_informācija[Rēķina nr.]=rngRēķins,ROW(Rēķina_informācija[])-ROW(Rēķina_informācija[#Headers])), ROW(21:21)), MATCH($F$8, Rēķina_informācija[#Headers], 0)),\"\")","v":""},""]
[null,{"$f":"IFERROR(INDEX(Rēķina_informācija[],SMALL(IF(Rēķina_informācija[Rēķina nr.]=rngRēķins,ROW(Rēķina_informācija[])-ROW(Rēķina_informācija[#Headers])), ROW(22:22)), MATCH($B$8, Rēķina_informācija[#Headers], 0)),\"\")","v":""},{"$f":"IFERROR(INDEX(Rēķina_informācija[],SMALL(IF(Rēķina_informācija[Rēķina nr.]=rngRēķins,ROW(Rēķina_informācija[])-ROW(Rēķina_informācija[#Headers])), ROW(22:22)), MATCH($C$8, Rēķina_informācija[#Headers], 0)),\"\")","v":""},{"$f":"IFERROR(INDEX(Rēķina_informācija[],SMALL(IF(Rēķina_informācija[Rēķina nr.]=rngRēķins,ROW(Rēķina_informācija[])-ROW(Rēķina_informācija[#Headers])), ROW(22:22)), MATCH($D$8, Rēķina_informācija[#Headers], 0)),\"\")","v":""},{"$f":"IFERROR(INDEX(Rēķina_informācija[],SMALL(IF(Rēķina_informācija[Rēķina nr.]=rngRēķins,ROW(Rēķina_informācija[])-ROW(Rēķina_informācija[#Headers])), ROW(22:22)), MATCH($E$8, Rēķina_informācija[#Headers], 0)),\"\")","v":""},{"$f":"IFERROR(INDEX(Rēķina_informācija[],SMALL(IF(Rēķina_informācija[Rēķina nr.]=rngRēķins,ROW(Rēķina_informācija[])-ROW(Rēķina_informācija[#Headers])), ROW(22:22)), MATCH($F$8, Rēķina_informācija[#Headers], 0)),\"\")","v":""},""]
[null,{"$f":"IFERROR(INDEX(Rēķina_informācija[],SMALL(IF(Rēķina_informācija[Rēķina nr.]=rngRēķins,ROW(Rēķina_informācija[])-ROW(Rēķina_informācija[#Headers])), ROW(23:23)), MATCH($B$8, Rēķina_informācija[#Headers], 0)),\"\")","v":""},{"$f":"IFERROR(INDEX(Rēķina_informācija[],SMALL(IF(Rēķina_informācija[Rēķina nr.]=rngRēķins,ROW(Rēķina_informācija[])-ROW(Rēķina_informācija[#Headers])), ROW(23:23)), MATCH($C$8, Rēķina_informācija[#Headers], 0)),\"\")","v":""},{"$f":"IFERROR(INDEX(Rēķina_informācija[],SMALL(IF(Rēķina_informācija[Rēķina nr.]=rngRēķins,ROW(Rēķina_informācija[])-ROW(Rēķina_informācija[#Headers])), ROW(23:23)), MATCH($D$8, Rēķina_informācija[#Headers], 0)),\"\")","v":""},{"$f":"IFERROR(INDEX(Rēķina_informācija[],SMALL(IF(Rēķina_informācija[Rēķina nr.]=rngRēķins,ROW(Rēķina_informācija[])-ROW(Rēķina_informācija[#Headers])), ROW(23:23)), MATCH($E$8, Rēķina_informācija[#Headers], 0)),\"\")","v":""},{"$f":"IFERROR(INDEX(Rēķina_informācija[],SMALL(IF(Rēķina_informācija[Rēķina nr.]=rngRēķins,ROW(Rēķina_informācija[])-ROW(Rēķina_informācija[#Headers])), ROW(23:23)), MATCH($F$8, Rēķina_informācija[#Headers], 0)),\"\")","v":""},""]
[null,{"$f":"IFERROR(INDEX(Rēķina_informācija[],SMALL(IF(Rēķina_informācija[Rēķina nr.]=rngRēķins,ROW(Rēķina_informācija[])-ROW(Rēķina_informācija[#Headers])), ROW(24:24)), MATCH($B$8, Rēķina_informācija[#Headers], 0)),\"\")","v":""},{"$f":"IFERROR(INDEX(Rēķina_informācija[],SMALL(IF(Rēķina_informācija[Rēķina nr.]=rngRēķins,ROW(Rēķina_informācija[])-ROW(Rēķina_informācija[#Headers])), ROW(24:24)), MATCH($C$8, Rēķina_informācija[#Headers], 0)),\"\")","v":""},{"$f":"IFERROR(INDEX(Rēķina_informācija[],SMALL(IF(Rēķina_informācija[Rēķina nr.]=rngRēķins,ROW(Rēķina_informācija[])-ROW(Rēķina_informācija[#Headers])), ROW(24:24)), MATCH($D$8, Rēķina_informācija[#Headers], 0)),\"\")","v":""},{"$f":"IFERROR(INDEX(Rēķina_informācija[],SMALL(IF(Rēķina_informācija[Rēķina nr.]=rngRēķins,ROW(Rēķina_informācija[])-ROW(Rēķina_informācija[#Headers])), ROW(24:24)), MATCH($E$8, Rēķina_informācija[#Headers], 0)),\"\")","v":""},{"$f":"IFERROR(INDEX(Rēķina_informācija[],SMALL(IF(Rēķina_informācija[Rēķina nr.]=rngRēķins,ROW(Rēķina_informācija[])-ROW(Rēķina_informācija[#Headers])), ROW(24:24)), MATCH($F$8, Rēķina_informācija[#Headers], 0)),\"\")","v":""},""]
[null,{"$f":"IFERROR(INDEX(Rēķina_informācija[],SMALL(IF(Rēķina_informācija[Rēķina nr.]=rngRēķins,ROW(Rēķina_informācija[])-ROW(Rēķina_informācija[#Headers])), ROW(25:25)), MATCH($B$8, Rēķina_informācija[#Headers], 0)),\"\")","v":""},{"$f":"IFERROR(INDEX(Rēķina_informācija[],SMALL(IF(Rēķina_informācija[Rēķina nr.]=rngRēķins,ROW(Rēķina_informācija[])-ROW(Rēķina_informācija[#Headers])), ROW(25:25)), MATCH($C$8, Rēķina_informācija[#Headers], 0)),\"\")","v":""},{"$f":"IFERROR(INDEX(Rēķina_informācija[],SMALL(IF(Rēķina_informācija[Rēķina nr.]=rngRēķins,ROW(Rēķina_informācija[])-ROW(Rēķina_informācija[#Headers])), ROW(25:25)), MATCH($D$8, Rēķina_informācija[#Headers], 0)),\"\")","v":""},{"$f":"IFERROR(INDEX(Rēķina_informācija[],SMALL(IF(Rēķina_informācija[Rēķina nr.]=rngRēķins,ROW(Rēķina_informācija[])-ROW(Rēķina_informācija[#Headers])), ROW(25:25)), MATCH($E$8, Rēķina_informācija[#Headers], 0)),\"\")","v":""},{"$f":"IFERROR(INDEX(Rēķina_informācija[],SMALL(IF(Rēķina_informācija[Rēķina nr.]=rngRēķins,ROW(Rēķina_informācija[])-ROW(Rēķina_informācija[#Headers])), ROW(25:25)), MATCH($F$8, Rēķina_informācija[#Headers], 0)),\"\")","v":""},""]
[{"$nulls":5},"Rēķina starpsumma",{"$f":"SUM(ProjektaRēķins[Cena])","v":{"v":2014,"d":"2,014.00 EUR"}}]
[{"$nulls":5},"Nodokļa likme",{"$f":"VLOOKUP(rngRēķins,RēķiniGalvenais[],5)","v":{"v":0.0875,"d":"8.75%"}}]
[{"$nulls":5},"PVN",{"$f":"G34*G35","v":{"v":176.225,"d":"176.23 EUR"}}]
[{"$nulls":5},"Cits",{"$f":"VLOOKUP(rngRēķins,RēķiniGalvenais[],6)","v":0}]
[null,{"$f":"\"Visi čeki ir jāsamaksā uzņēmumam \"&Uzņēmuma_nosaukums&\".\"","v":"Visi čeki ir jāsamaksā uzņēmumam Uzņēmuma nosaukums."},{"$nulls":3},"Saņemtais avanss",{"$f":"VLOOKUP(rngRēķins,RēķiniGalvenais[],7)","v":0}]
[null,"Kopsumma jāapmaksā <#> dienu laikā. Kontiem ar nokavētiem maksājumiem tiks piemērota soda nauda <#>% apmērā mēnesī.",{"$nulls":3},"Kopsumma",{"$f":"(G34+G36+G37)-G38","v":{"v":2190.225,"d":"2,190.23 EUR"}}]

{"sheet":"Klienti","index":1,"n_rows":6,"n_cols":12,"rows_kept":6}
[]
[null,null,"Klienti"]
[null,"Uzmeklēšana","Uzņēmuma nr.","Uzņēmuma nosaukums","Kontaktpersonas vārds","Adrese","Pilsēta","Novads","Pasta indekss","Tālrunis","E-pasts","Fakss"]
[null,{"$f":"C4& \" - \"&D4","v":"1 - Pārtikas veikals Lapa "},1,"Pārtikas veikals Lapa ","Raimonds Turins","Ķiršu iela 345","Valmiera","Salacgrīvas","123456","25550178","persona@example.com","25550187"]
[null,"2 - Contoso, Ltd",2,"Contoso, Ltd","Stefans Krieviņš","Riekstu aleja 567","Ainaži","Valmieras","098765","25550189","persona@example.com","25550123"]
[null,"Kopsummas",{"$f":"\"Klienti kopā: \"&SUBTOTAL(103,KlientuSaraksts[Uzņēmuma nr.])","v":"Klienti kopā: 2"}]

{"sheet":"Rēķini — galvenā","index":2,"n_rows":6,"n_cols":11,"rows_kept":6}
[]
[null,"Rēķini"]
[null,"Rēķina nr.","Uzņēmums","Rēķina datums","Projekta apraksts","Nodokļa likme","Cits","Avanss","Detalizēta kopsumma","Rēķinu kopsumma","Piezīmes"]
[null,"3-456-1","1 - Pārtikas veikals Lapa ",{"$f":"TODAY()","v":{"v":43678,"d":"4367800.00%"}},"1. projekts",{"v":0.0875,"d":"8.75%"},{"v":100,"d":"100.00 EUR"},{"v":100,"d":"100.00 EUR"},{"$f":"SUMIF(Rēķina_informācija[Rēķina nr.],\"=\"&RēķiniGalvenais[[#This Row],[Rēķina nr.]],Rēķina_informācija[Kopsumma])","v":{"v":5200,"d":"5,200.00 EUR"}},{"$f":"(RēķiniGalvenais[[#This Row],[Detalizēta kopsumma]]*(1+RēķiniGalvenais[[#This Row],[Nodokļa likme]]))+RēķiniGalvenais[[#This Row],[Cits]]-RēķiniGalvenais[[#This Row],[Avanss]]","v":{"v":5654.999999999999,"d":"5,655.00 EUR"}}]
[null,"3-456-2","2 - Contoso, Ltd",{"$f":"TODAY()+10","v":{"v":43688,"d":"4368800.00%"}},"2. projekts",{"v":0.0875,"d":"8.75%"},null,null,{"$f":"SUMIF(Rēķina_informācija[Rēķina nr.],\"=\"&RēķiniGalvenais[[#This Row],[Rēķina nr.]],Rēķina_informācija[Kopsumma])","v":{"v":2014,"d":"2,014.00 EUR"}},{"$f":"(RēķiniGalvenais[[#This Row],[Detalizēta kopsumma]]*(1+RēķiniGalvenais[[#This Row],[Nodokļa likme]]))+RēķiniGalvenais[[#This Row],[Cits]]-RēķiniGalvenais[[#This Row],[Avanss]]","v":{"v":2190.225,"d":"2,190.23 EUR"}}]
[null,"Kopsummas",{"$f":"\"Rēķinu kopskaits: \"&SUBTOTAL(103,RēķiniGalvenais[Rēķina nr.])","v":"Rēķinu kopskaits: 2"},{"$nulls":3},{"$f":"SUBTOTAL(109,RēķiniGalvenais[Cits])","v":{"v":100,"d":"100.00 EUR"}},{"$f":"SUBTOTAL(109,RēķiniGalvenais[Avanss])","v":{"v":100,"d":"100.00 EUR"}},{"$f":"SUBTOTAL(109,RēķiniGalvenais[Detalizēta kopsumma])","v":{"v":7214,"d":"7,214.00 EUR"}},{"$f":"SUBTOTAL(109,RēķiniGalvenais[Rēķinu kopsumma])","v":{"v":7845.2249999999985,"d":"7,845.23 EUR"}}]

{"sheet":"Rēķina detalizētā informācija","index":3,"n_rows":40,"n_cols":8,"rows_kept":40}
[]
[null,"Rēķina detalizētā informācija"]
[null,"Apraksts","Rēķina nr.","Priekšmeta nr.","Daudz.","Vienības cena","Atlaide","Kopsumma"]
[null,"Faktūrrēķins 3-456-1 dati 1","3-456-1",1,1,{"v":1,"d":"1.00 EUR"},{"v":1,"d":"1.00 EUR"},{"$f":"(Rēķina_informācija[[#This Row],[Daudz.]]*Rēķina_informācija[[#This Row],[Vienības cena]])-Rēķina_informācija[[#This Row],[Atlaide]]","v":{"v":0,"d":"0.00 EUR"}}]
[null,"Faktūrrēķins 3-456-1 dati 2","3-456-1",2,2,{"v":2,"d":"2.00 EUR"},{"v":2,"d":"2.00 EUR"},{"$f":"(Rēķina_informācija[[#This Row],[Daudz.]]*Rēķina_informācija[[#This Row],[Vienības cena]])-Rēķina_informācija[[#This Row],[Atlaide]]","v":{"v":2,"d":"2.00 EUR"}}]
[null,"Faktūrrēķins 3-456-1 dati 3","3-456-1",3,3,{"v":3,"d":"3.00 EUR"},{"v":3,"d":"3.00 EUR"},{"$f":"(Rēķina_informācija[[#This Row],[Daudz.]]*Rēķina_informācija[[#This Row],[Vienības cena]])-Rēķina_informācija[[#This Row],[Atlaide]]","v":{"v":6,"d":"6.00 EUR"}}]
[null,"Faktūrrēķins 3-456-1 dati 4","3-456-1",4,4,{"v":4,"d":"4.00 EUR"},{"v":4,"d":"4.00 EUR"},{"$f":"(Rēķina_informācija[[#This Row],[Daudz.]]*Rēķina_informācija[[#This Row],[Vienības cena]])-Rēķina_informācija[[#This Row],[Atlaide]]","v":{"v":12,"d":"12.00 EUR"}}]
[null,"Faktūrrēķins 3-456-1 dati 5","3-456-1",5,5,{"v":5,"d":"5.00 EUR"},{"v":5,"d":"5.00 EUR"},{"$f":"(Rēķina_informācija[[#This Row],[Daudz.]]*Rēķina_informācija[[#This Row],[Vienības cena]])-Rēķina_informācija[[#This Row],[Atlaide]]","v":{"v":20,"d":"20.00 EUR"}}]
[null,"Faktūrrēķins 3-456-1 dati 6","3-456-1",6,6,{"v":6,"d":"6.00 EUR"},{"v":6,"d":"6.00 EUR"},{"$f":"(Rēķina_informācija[[#This Row],[Daudz.]]*Rēķina_informācija[[#This Row],[Vienības cena]])-Rēķina_informācija[[#This Row],[Atlaide]]","v":{"v":30,"d":"30.00 EUR"}}]
[null,"Faktūrrēķins 3-456-1 dati 7","3-456-1",7,7,{"v":7,"d":"7.00 EUR"},{"v":7,"d":"7.00 EUR"},{"$f":"(Rēķina_informācija[[#This Row],[Daudz.]]*Rēķina_informācija[[#This Row],[Vienības cena]])-Rēķina_informācija[[#This Row],[Atlaide]]","v":{"v":42,"d":"42.00 EUR"}}]
[null,"Faktūrrēķins 3-456-1 dati 8","3-456-1",8,8,{"v":8,"d":"8.00 EUR"},{"v":8,"d":"8.00 EUR"},{"$f":"(Rēķina_informācija[[#This Row],[Daudz.]]*Rēķina_informācija[[#This Row],[Vienības cena]])-Rēķina_informācija[[#This Row],[Atlaide]]","v":{"v":56,"d":"56.00 EUR"}}]
[null,"Faktūrrēķins 3-456-1 dati 9","3-456-1",9,9,{"v":9,"d":"9.00 EUR"},{"v":9,"d":"9.00 EUR"},{"$f":"(Rēķina_informācija[[#This Row],[Daudz.]]*Rēķina_informācija[[#This Row],[Vienības cena]])-Rēķina_informācija[[#This Row],[Atlaide]]","v":{"v":72,"d":"72.00 EUR"}}]
[null,"Faktūrrēķins 3-456-1 dati 10","3-456-1",10,10,{"v":10,"d":"10.00 EUR"},{"v":10,"d":"10.00 EUR"},{"$f":"(Rēķina_informācija[[#This Row],[Daudz.]]*Rēķina_informācija[[#This Row],[Vienības cena]])-Rēķina_informācija[[#This Row],[Atlaide]]","v":{"v":90,"d":"90.00 EUR"}}]
[null,"Faktūrrēķins 3-456-1 dati 11","3-456-1",11,11,{"v":11,"d":"11.00 EUR"},{"v":11,"d":"11.00 EUR"},{"$f":"(Rēķina_informācija[[#This Row],[Daudz.]]*Rēķina_informācija[[#This Row],[Vienības cena]])-Rēķina_informācija[[#This Row],[Atlaide]]","v":{"v":110,"d":"110.00 EUR"}}]
[null,"Faktūrrēķins 3-456-1 dati 12","3-456-1",12,12,{"v":12,"d":"12.00 EUR"},{"v":12,"d":"12.00 EUR"},{"$f":"(Rēķina_informācija[[#This Row],[Daudz.]]*Rēķina_informācija[[#This Row],[Vienības cena]])-Rēķina_informācija[[#This Row],[Atlaide]]","v":{"v":132,"d":"132.00 EUR"}}]
[null,"Faktūrrēķins 3-456-1 dati 13","3-456-1",13,13,{"v":13,"d":"13.00 EUR"},{"v":13,"d":"13.00 EUR"},{"$f":"(Rēķina_informācija[[#This Row],[Daudz.]]*Rēķina_informācija[[#This Row],[Vienības cena]])-Rēķina_informācija[[#This Row],[Atlaide]]","v":{"v":156,"d":"156.00 EUR"}}]
[null,"Faktūrrēķins 3-456-1 dati 14","3-456-1",14,14,{"v":14,"d":"14.00 EUR"},{"v":14,"d":"14.00 EUR"},{"$f":"(Rēķina_informācija[[#This Row],[Daudz.]]*Rēķina_informācija[[#This Row],[Vienības cena]])-Rēķina_informācija[[#This Row],[Atlaide]]","v":{"v":182,"d":"182.00 EUR"}}]
[null,"Faktūrrēķins 3-456-1 dati 15","3-456-1",15,15,{"v":15,"d":"15.00 EUR"},{"v":15,"d":"15.00 EUR"},{"$f":"(Rēķina_informācija[[#This Row],[Daudz.]]*Rēķina_informācija[[#This Row],[Vienības cena]])-Rēķina_informācija[[#This Row],[Atlaide]]","v":{"v":210,"d":"210.00 EUR"}}]
[null,"Faktūrrēķins 3-456-1 dati 16","3-456-1",16,16,{"v":16,"d":"16.00 EUR"},{"v":16,"d":"16.00 EUR"},{"$f":"(Rēķina_informācija[[#This Row],[Daudz.]]*Rēķina_informācija[[#This Row],[Vienības cena]])-Rēķina_informācija[[#This Row],[Atlaide]]","v":{"v":240,"d":"240.00 EUR"}}]
[null,"Faktūrrēķins 3-456-1 dati 17","3-456-1",17,17,{"v":17,"d":"17.00 EUR"},{"v":17,"d":"17.00 EUR"},{"$f":"(Rēķina_informācija[[#This Row],[Daudz.]]*Rēķina_informācija[[#This Row],[Vienības cena]])-Rēķina_informācija[[#This Row],[Atlaide]]","v":{"v":272,"d":"272.00 EUR"}}]
[null,"Faktūrrēķins 3-456-1 dati 18","3-456-1",18,18,{"v":18,"d":"18.00 EUR"},{"v":18,"d":"18.00 EUR"},{"$f":"(Rēķina_informācija[[#This Row],[Daudz.]]*Rēķina_informācija[[#This Row],[Vienības cena]])-Rēķina_informācija[[#This Row],[Atlaide]]","v":{"v":306,"d":"306.00 EUR"}}]
[null,"Faktūrrēķins 3-456-1 dati 19","3-456-1",19,19,{"v":19,"d":"19.00 EUR"},{"v":19,"d":"19.00 EUR"},{"$f":"(Rēķina_informācija[[#This Row],[Daudz.]]*Rēķina_informācija[[#This Row],[Vienības cena]])-Rēķina_informācija[[#This Row],[Atlaide]]","v":{"v":342,"d":"342.00 EUR"}}]
[null,"Faktūrrēķins 3-456-1 dati 20","3-456-1",20,20,{"v":20,"d":"20.00 EUR"},{"v":20,"d":"20.00 EUR"},{"$f":"(Rēķina_informācija[[#This Row],[Daudz.]]*Rēķina_informācija[[#This Row],[Vienības cena]])-Rēķina_informācija[[#This Row],[Atlaide]]","v":{"v":380,"d":"380.00 EUR"}}]
[null,"Faktūrrēķins 3-456-1 dati 21","3-456-1",21,21,{"v":21,"d":"21.00 EUR"},{"v":21,"d":"21.00 EUR"},{"$f":"(Rēķina_informācija[[#This Row],[Daudz.]]*Rēķina_informācija[[#This Row],[Vienības cena]])-Rēķina_informācija[[#This Row],[Atlaide]]","v":{"v":420,"d":"420.00 EUR"}}]
[null,"Faktūrrēķins 3-456-1 dati 22","3-456-1",22,22,{"v":22,"d":"22.00 EUR"},{"v":22,"d":"22.00 EUR"},{"$f":"(Rēķina_informācija[[#This Row],[Daudz.]]*Rēķina_informācija[[#This Row],[Vienības cena]])-Rēķina_informācija[[#This Row],[Atlaide]]","v":{"v":462,"d":"462.00 EUR"}}]
[null,"Faktūrrēķins 3-456-1 dati 23","3-456-1",23,23,{"v":23,"d":"23.00 EUR"},{"v":23,"d":"23.00 EUR"},{"$f":"(Rēķina_informācija[[#This Row],[Daudz.]]*Rēķina_informācija[[#This Row],[Vienības cena]])-Rēķina_informācija[[#This Row],[Atlaide]]","v":{"v":506,"d":"506.00 EUR"}}]
[null,"Faktūrrēķins 3-456-1 dati 24","3-456-1",24,24,{"v":24,"d":"24.00 EUR"},{"v":24,"d":"24.00 EUR"},{"$f":"(Rēķina_informācija[[#This Row],[Daudz.]]*Rēķina_informācija[[#This Row],[Vienības cena]])-Rēķina_informācija[[#This Row],[Atlaide]]","v":{"v":552,"d":"552.00 EUR"}}]
[null,"Faktūrrēķins 3-456-1 dati 25","3-456-1",25,25,{"v":25,"d":"25.00 EUR"},{"v":25,"d":"25.00 EUR"},{"$f":"(Rēķina_informācija[[#This Row],[Daudz.]]*Rēķina_informācija[[#This Row],[Vienības cena]])-Rēķina_informācija[[#This Row],[Atlaide]]","v":{"v":600,"d":"600.00 EUR"}}]
[null,"Faktūrrēķins 3-456-2 dati 1","3-456-2","Z4567",39,{"v":5,"d":"5.00 EUR"},null,{"$f":"(Rēķina_informācija[[#This Row],[Daudz.]]*Rēķina_informācija[[#This Row],[Vienības cena]])-Rēķina_informācija[[#This Row],[Atlaide]]","v":{"v":195,"d":"195.00 EUR"}}]
[null,"Faktūrrēķins 3-456-2 dati 2","3-456-2","Z4568",40,{"v":4,"d":"4.00 EUR"},{"v":5,"d":"5.00 EUR"},{"$f":"(Rēķina_informācija[[#This Row],[Daudz.]]*Rēķina_informācija[[#This Row],[Vienības cena]])-Rēķina_informācija[[#This Row],[Atlaide]]","v":{"v":155,"d":"155.00 EUR"}}]
[null,"Faktūrrēķins 3-456-2 dati 3","3-456-2","Z4569",30,{"v":6,"d":"6.00 EUR"},{"v":7,"d":"7.00 EUR"},{"$f":"(Rēķina_informācija[[#This Row],[Daudz.]]*Rēķina_informācija[[#This Row],[Vienības cena]])-Rēķina_informācija[[#This Row],[Atlaide]]","v":{"v":173,"d":"173.00 EUR"}}]
[null,"Faktūrrēķins 3-456-2 dati 4","3-456-2","Z4570",40,{"v":7,"d":"7.00 EUR"},null,{"$f":"(Rēķina_informācija[[#This Row],[Daudz.]]*Rēķina_informācija[[#This Row],[Vienības cena]])-Rēķina_informācija[[#This Row],[Atlaide]]","v":{"v":280,"d":"280.00 EUR"}}]
[null,"Faktūrrēķins 3-456-2 dati 5","3-456-2","Z4571",10,{"v":4,"d":"4.00 EUR"},null,{"$f":"(Rēķina_informācija[[#This Row],[Daudz.]]*Rēķina_informācija[[#This Row],[Vienības cena]])-Rēķina_informācija[[#This Row],[Atlaide]]","v":{"v":40,"d":"40.00 EUR"}}]
[null,"Faktūrrēķins 3-456-2 dati 6","3-456-2","Z4572",5,{"v":8,"d":"8.00 EUR"},null,{"$f":"(Rēķina_informācija[[#This Row],[Daudz.]]*Rēķina_informācija[[#This Row],[Vienības cena]])-Rēķina_informācija[[#This Row],[Atlaide]]","v":{"v":40,"d":"40.00 EUR"}}]
[null,"Faktūrrēķins 3-456-2 dati 7","3-456-2","Z4573",70,{"v":6,"d":"6.00 EUR"},null,{"$f":"(Rēķina_informācija[[#This Row],[Daudz.]]*Rēķina_informācija[[#This Row],[Vienības cena]])-Rēķina_informācija[[#This Row],[Atlaide]]","v":{"v":420,"d":"420.00 EUR"}}]
[null,"Faktūrrēķins 3-456-2 dati 8","3-456-2","Z4574",25,{"v":4,"d":"4.00 EUR"},null,{"$f":"(Rēķina_informācija[[#This Row],[Daudz.]]*Rēķina_informācija[[#This Row],[Vienības cena]])-Rēķina_informācija[[#This Row],[Atlaide]]","v":{"v":100,"d":"100.00 EUR"}}]
[null,"Faktūrrēķins 3-456-2 dati 9","3-456-2","Z4575",5,{"v":7,"d":"7.00 EUR"},{"v":3,"d":"3.00 EUR"},{"$f":"(Rēķina_informācija[[#This Row],[Daudz.]]*Rēķina_informācija[[#This Row],[Vienības cena]])-Rēķina_informācija[[#This Row],[Atlaide]]","v":{"v":32,"d":"32.00 EUR"}}]
[null,"Faktūrrēķins 3-456-2 dati 10","3-456-2","Z4576",80,{"v":1,"d":"1.00 EUR"},null,{"$f":"(Rēķina_informācija[[#This Row],[Daudz.]]*Rēķina_informācija[[#This Row],[Vienības cena]])-Rēķina_informācija[[#This Row],[Atlaide]]","v":{"v":80,"d":"80.00 EUR"}}]
[null,"Faktūrrēķins 3-456-2 dati 11","3-456-2","Z4577",65,{"v":7,"d":"7.00 EUR"},null,{"$f":"(Rēķina_informācija[[#This Row],[Daudz.]]*Rēķina_informācija[[#This Row],[Vienības cena]])-Rēķina_informācija[[#This Row],[Atlaide]]","v":{"v":455,"d":"455.00 EUR"}}]
[null,"Faktūrrēķins 3-456-2 dati 12","3-456-2","Z4578",44,{"v":1,"d":"1.00 EUR"},null,{"$f":"(Rēķina_informācija[[#This Row],[Daudz.]]*Rēķina_informācija[[#This Row],[Vienības cena]])-Rēķina_informācija[[#This Row],[Atlaide]]","v":{"v":44,"d":"44.00 EUR"}}]

{"sheet":"Par šo rēķinu izsekotāju","index":4,"n_rows":40,"n_cols":3,"rows_kept":40,"merged":[[3,1,3,7],[4,1,4,7],[5,1,5,7],[6,1,6,7],[7,2,7,7],[8,2,8,7],[9,2,9,7],[10,2,10,7],[11,2,11,7],[12,1,12,7],[13,2,13,3],[14,2,14,7],[15,1,15,7],[16,2,16,7],[17,2,17,7],[18,2,18,7],[19,2,19,7],[20,2,20,7],[21,2,21,7],[22,1,22,7],[23,1,23,7],[24,2,24,7],[25,2,25,7],[26,2,26,7],[27,2,27,7],[28,1,28,7],[29,1,29,7],[30,2,30,7],[31,2,31,7],[32,2,32,7],[33,2,33,7],[34,2,34,7],[36,2,36,7],[37,2,37,7],[38,2,38,7],[39,2,39,7]]}
[null,"Par šo rēķinu izsekotāju"]
[]
[]
[null,"Rēķinu izsekotājs ir paredzēts, lai uzturētu klientu, rēķinu un rēķinu detalizētas informācijas vēsturi, lai jūs varētu glabāt vairākus rēķinus, neveidojot vairākus failus. Varat arī izmantot rēķinu izsekotāju, lai analizētu iepriekš izrakstītos datus. Piemēram, varat skatīt visus rēķinus klientam, konkrētam projektam vai skatīt visus rēķinus par pēdējo mēnesi, pēdējo gadu un daudz ko citu."]
[null,"Pirms darba sākšanas aplūkojiet sniegto datu paraugu. Rēķinu lapā atlasiet šūnu pa labi no Rēķins nr. (šūna L8), un tiks parādīts nolaižamais saraksts. Atlasiet nolaižamā saraksta bultiņu un pēc tam atlasiet rēķina paraugu. Ievērojiet, kā visa rēķina informācija tiek automātiski mainīta, lai atspoguļotu atlasīto rēķinu. Tagad aplūkojiet Klienti, Rēķini — galveno un rēķinu detalizētās informācijas lapu. Katra no šīm lapām sniedz informāciju lapai Rēķins, un visas jūsu veiktās izmaiņas tiks automātiski atjauninātas. "]
[null,"Kā sākt darbu?"]
[null,"Modificējiet lapu Rēķins, lai tā atspoguļotu jūsu uzņēmuma informāciju, veicot šādas darbības:"]
[null,"1.","Pārejiet uz lapu Rēķins un cilnes Pārskatīšana grupā Aizsardzība atlasiet Noņemt lapas aizsardzību. "]
[null,null,"Piezīme. Rēķina lapa ir aizsargāta, lai izvairītos no netīšām izmaiņām, jo, kā minēts iepriekš, lielākā daļa šajā lapā esošo datu tiek izvilkta no visām pārējām darbgrāmatas lapām. "]
[null,"2.","Pielāgojiet rēķina galveni, ierakstot uzņēmuma nosaukumu, adresi, pilsētu, pasta indeksu, e-pasta adresi, tīmekļa vietni utt. Rēķina lejasdaļā (rinda 43) modificējiet apmaksas norādījumus. "]
[null,null,"Svarīgi! Nemodificējiet norēķinu vai rēķina informāciju. Visās šajās šūnās ir formulas, kuras automātiski atjauninās rēķinu, kā tas ir norādīts sadaļā Par rēķinu izsekotāju.  "]
[null,"3.","(Nav obligāti) Modificējiet krāsas visā darbgrāmatā: Cilnes Lappuses izkārtojums grupā Dizaini atlasiet Krāsas un krāsu galerijā atlasiet citu dizaina krāsu kopu. "]
[null,"Padoms: Izveidojiet pielāgotu dizaina krāsu kopu, kas atbilst jūsu uzņēmuma zīmolam. Lai to izdarītu, cilnes Lappuses izkārtojums grupā Dizaini atlasiet Krāsas un pēc tam atlasiet Pielāgot krāsas. Lai iegūtu papildinformāciju par pielāgotas krāsas kopas izveidi, skatiet šo palīdzības tēmu: "]
[null,null,"Pielāgojiet dokumenta dizainu."]
[null,"4.","Kad esat veicis vajadzīgās izmaiņas, atgriezieties lapā Rēķins un cilnes Pārskatīšana grupā Izmaiņas atlasiet Aizsargāt lapu un pēc tam atlasiet Labi. Kad rēķina lapa ir aizsargāta, vienīgā šūna, ko varat atlasīt, ir šūna ar rēķina nr. nolaižamo izvēlni."]
[null,"Kā izveidot rēķinu?"]
[null,"1.","Lapā Klienti ievadiet klienta informāciju, piemēram, uzņēmuma nosaukumu un adresi. Ņemiet vērā, ka uzņēmuma nr. ir svarīgs ieraksts, jo tas nodrošina tādu unikālu identifikatoru katram uzņēmumam, kas tiek lietots rēķinu izsekotājā. Ņemiet vērā arī to, ka uzņēmums ir jāpievieno tikai vienu reizi. Turpmākajiem rēķiniem tam pašam uzņēmumam šo darbību var izlaist. "]
[null,null,"Piezīme. Ja piešķirat vienu un to pašu numuru vairākiem uzņēmumiem vai ja ievadāt vienu un uzņēmuma nosaukumu vairākas reizes, ieraksti tiek atzīmēti sarkanā krāsā, lai jūs brīdinātu par dublēšanos. "]
[null,"2.","Rēķinu galvenajā lapā ievadiet rēķina primāro informāciju, piemēram, rēķina nr., rēķina datumu un projekta aprakstu. Līdzīgi kā uzņēmuma nr. arī rēķina nr. ir svarīgs ieraksts, jo tas nodrošina unikālu identifikatoru katram rēķinam un tiek lietots rēķinu izsekotājā. Vēl viens svarīgs ieraksts ir Uzņēmums. Kad nolaižamajā sarakstā atlasāt uzņēmumu, tas saista jūsu rēķinu ar šo uzņēmumu. Pēc tam rēķina lapā atlasot rēķina nr., šī uzņēmuma informācija, piemēram, uzņēmuma nosaukums un adrese, tiek automātiski aizpildīta rēķinā."]
[null,null,"Piezīme. Ja piešķirat vienu un to pašu numuru vairākiem rēķiniem, ieraksti tiek atzīmēti sarkanā krāsā, lai jūs brīdinātu par dublēšanos. "]
[null,"3.","Lapā Rēķina detalizētā informācija ievadiet rēķina detalizēto informāciju, piemēram, preces aprakstu, preces nr., daudzumu un vienības cenu. Lai atvieglotu datu ievadi, rēķina nr. nolaižamajā sarakstā ir jūsu ievadīto rēķinu saraksts (Rēķini — galvenā lapa). Līdzīgi kā ar uzņēmuma nr. iepriekšējā darbībā rēķina nr. saista šo detalizēto vienumu ar konkrētu rēķinu. Ja rēķina lapas rēķina nr. nolaižamajā sarakstā atlasāt rēķina nr., tiek parādīti atbilstošā rēķina detalizētās informācijas vienumi."]
[null,null,"Piezīme. Katram rēķinam varat norādīt tikai 25 detalizētus vienumus. Ja ir pievienoti vairāk nekā 25 vienumi, visi atbilstošie ieraksti tiek atzīmēti sarkanā krāsā, lai jūs brīdinātu par šo ierobežojumu. Ja jums ir vairāk nekā 25 rēķinā iekļauti vienumi, ir jāizveido otrs rēķins. "]
[null,"Kā pievienot papildu klientus, rēķinus un detalizētu informāciju par rēķiniem?"]
[null,"Dati par klientiem, rēķiniem un rēķinu detalizēto informāciju tiek glabāti Excel tabulās. Pievienojot tabulai jaunu rindu, šī jaunizveidotā rinda automātiski tiek formatēta un visi aprēķini tiek kopēti. Lai pievienotu jaunas tabulas rindas, veiciet kādu no šīm darbībām:"]
[null,"● ","Ja tabulā nav kopsummas rindas, sāciet rakstīt zem tabulas, un tā tiks automātiski izvērsta, kad nospiedīsit taustiņu Enter vai tabulēšanas taustiņu."]
[null,"● ","Novietojiet šūnas rādītāju pēdējā šūnā virs kopsummas rindas, piemēram, tabulas Rēķini pēdējā rēķina šūnā Piezīmes, un pēc tam nospiediet tabulēšanas taustiņu."]
[null,"● ","Cilnes Sākums grupā Šūnas atlasiet Ievietot un pēc tam atlasiet Tabulas rindu virs vai Tabulas rindu zem. "]
[null,"● ","Tabulas apakšējā labajā stūrī novietojiet peli uz tabulas lielummaiņas tura un velciet uz leju, lai palielinātu pieejamo tabulas rindu skaitu."]
[null,"Kā analizēt savu detalizēto informāciju par rēķinu?"]
[null,"Kā atzīmēts sadaļā Par rēķinu izsekotāju, kad esat ievadījis vairākus rēķinus, varat skatīt visu rēķinu sarakstu konkrētam klientam, projektam, konkrētam datumu intervālam un daudz kam citam. Šis analīzes veids tiek panākts, izmantojot filtru, kas sniedz iespēju ātri sašaurināt datu sarakstu. Lai tabulās Klienti, Rēķini vai Rēķinu detalizētā informācija piekļūtu filtram, atlasiet nolaižamā saraksta bultiņu blakus jebkuram tabulas lauka nosaukumam. Tiek parādīta filtra rūts, kurā ir pieejamas dažādas filtrēšanas opcijas. Lūk, daži filtrēšanas piemēri, kas palīdzēs sākt darbu:"]
[null,"● ","Lai skatītu konkrētam klientam rēķinos iekļauto kopsummu: Rēķinu galvenajā lapā pa labi no lauka Uzņēmuma nr. atlasiet nolaižamā saraksta bultiņu. Filtra rūtī noklikšķiniet uz Atlasīt visu, lai noņemtu atlasi visiem uzņēmumiem, atlasiet nepieciešamo uzņēmumu un pēc tam atlasiet Labi. "]
[null,null,"Padoms: Rūtī Filtrs varat arī ierakstīt klienta nosaukumu tekstlodziņā Meklēt, lai ātri meklētu pieejamajā sarakstā."]
[null,"● ","Lai skatītu visus rēķinus konkrētam klientam un konkrētam(iem) projektam(iem): Vispirms filtrējiet, lai atrastu nepieciešamo klientu, izmantojot iepriekšējā piemērā norādītās darbības. Pēc tam pa labi no Projekta nr. atlasiet nolaižamā saraksta bultiņu. Filtra rūtī atlasiet nepieciešamos projektus un pēc tam atlasiet Labi. "]
[null,"● ","Lai skatītu visus iepriekšējā mēneša rēķinus: Rēķinu galvenajā lapā pa labi no lauka Rēķina datums atlasiet nolaižamā saraksta bultiņu, norādiet uz Datuma filtri un pēc tam atlasiet Pēdējais mēnesis."]
[null,"● ","Lai skatītu visus klientus ar vienu un to pašu apgabala kodu: Lapā Klienti pa labi no lauka Tālrunis atlasiet nolaižamā saraksta bultiņu. Filtra rūtī noklikšķiniet tekstlodziņā Meklēt, ierakstiet apgabala kodu un pēc tam atlasiet Labi. "]
[null,"Filtra padomi"]
[null,"● ","Ja tabulai, piemēram, Klienti un Rēķini, ir kopsummas rinda, tad aprēķinātās kopsummas atbildīs tikai filtrētajam sarakstam."]
[null,"● ","Izmantojiet vairākus filtrus vienam vai vairākiem laukiem, lai precizētu rezultātus."]
[null,"● ","Lai notīrītu vienu filtru, atlasiet nolaižamā saraksta bultiņu iepriekš filtrētai kolonnai un pēc tam atlasiet Notīrīt filtru laukam <lauka nosaukums>."]
[null,"● ","Lai vienlaikus notīrītu vairākus filtrus, novietojiet šūnas rādītāju tabulā, cilnes Sākums grupā Rediģēšana atlasiet Kārtot un filtrēt un pēc tam atlasiet Notīrīt."]